bitfinex/quotes_SOLUSD_20240718
["timestamp","ask_amount","ask_price","bid_price","bid_amount"]
[1721264933147,51.4947,158.11,158.07,6.3263]
[1721264934464,45.17,158.11,158.08,6.3255]
[1721264935047,0.17,158.11,158.08,6.3255]
[1721264935559,6.3234,158.15,158.08,32.48905196]
[1721264935857,10.66889724,158.18,158.08,31.224]
[1721264936057,6.3231,158.15,158.1,6.325]
[1721264937364,45.17,158.14,158.1,6.325]
[1721264937566,6.3227,158.17,158.11,7.58937067]
[1721264938438,6.3227,158.17,158.11,22.99923718]
[1721264938843,45.0,158.16,158.11,22.99923718]
[1721264939368,253.5,158.2,158.13,15.8093]
[1721264939573,253.5,158.2,158.14,6.3234]
[1721264939574,6.3215,158.19,158.14,6.3234]
[1721264939867,6.3215,158.19,158.14,21.7334]
[1721264940079,6.3215,158.19,158.14,6.3234]
[1721264940961,45.17,158.18,158.14,6.3234]
[1721264942171,45.17,158.18,158.15,6.3229]
[1721264942470,45.0,158.17,158.15,6.3229]
[1721264942673,0.17,158.18,158.15,6.3229]
[1721264943463,45.0,158.19,158.16,1.26446257]
[1721264943767,6.3203,158.23,158.18,6.3219]
[1721264943945,6.3203,158.22,158.17,6.3222]
[1721264944147,6.3203,158.22,158.18,6.3218]
[1721264944959,45.0,158.21,158.18,6.3218]
[1721264945653,51.3208,158.21,158.15,31.217]
[1721264945850,0.17,158.2,158.15,15.807]
[1721264946252,6.3208,158.21,158.16,6.3223]
[1721264946466,15.7974,158.26,158.18,6.3217]
[1721264946679,6.3202,158.23,158.18,6.3217]
[1721264946965,45.0,158.22,158.18,6.3217]
[1721264947165,45.0,158.22,158.19,6.3215]
[1721264947376,45.17,158.23,158.19,6.3215]
[1721264947571,0.17,158.22,158.17,15.8051]
[1721264947752,0.17,158.22,158.18,6.3218]
[1721264948577,0.17,158.22,158.19,6.3214]
[1721264950256,0.17,158.22,158.21,6.3207]
[1721264950455,45.0,158.23,158.21,6.3207]
[1721264950669,6.3188,158.26,158.21,6.3207]
[1721264950873,10.0,158.41,158.23,15.7989]
[1721264950874,6.3626,158.32,158.23,15.7989]
[1721264951172,6.3176,158.29,158.24,6.3194]
[1721264951850,6.3171,158.31,158.26,6.3186]
[1721264952058,6.3171,158.3,158.25,6.319]
[1721264952574,6.3175,158.29,158.24,6.3194]
[1721264953369,6.3164,158.32,158.27,6.3181]
[1721264954373,6.3167,158.31,158.27,6.3181]
[1721264954556,6.3167,158.31,158.26,22.1152]
[1721264955182,6.3172,158.3,158.26,15.7966]
[1721264955357,45.17,158.29,158.25,22.8557]
[1721264955669,45.17,158.29,158.26,6.3185]
[1721264956167,45.0,158.3,158.27,6.3182]
[1721264956371,45.0,158.3,158.26,6.3186]
[1721264957377,45.0,158.3,158.27,6.3182]
[1721264957551,51.3171,158.3,158.25,38.6524]
[1721264957745,6.4875,158.29,158.25,38.6524]
[1721264957975,45.0,158.28,158.25,32.3336]
[1721264958153,45.0,158.28,158.21,32.1543]
[1721264958362,6.4886,158.27,158.22,6.3199]
[1721264958571,45.0,158.26,158.22,6.3199]
[1721264958773,0.17,158.25,158.22,6.3199]
[1721264960288,6.4891,158.25,158.21,32.1543]
[1721264960454,45.0,158.24,158.21,32.1543]
[1721264960759,45.0,158.24,158.21,38.4749]
[1721264960966,45.17,158.25,158.22,6.3202]
[1721264962773,45.17,158.25,158.21,38.4749]
[1721264964378,45.17,158.25,158.21,32.1543]
[1721264964687,45.17,158.25,158.22,6.3202]
[1721264966072,0.17,158.25,158.22,6.3202]
[1721264967674,0.17,158.25,158.21,32.1543]
[1721264968181,6.4892,158.25,158.21,32.1543]
[1721264968364,45.0,158.24,158.21,38.4748]
[1721264968773,45.17,158.25,158.21,16.3531]
[1721264968992,6.3196,158.24,158.21,16.3531]
[1721264969165,45.17,158.23,158.21,16.3531]
[1721264970484,45.17,158.23,158.21,22.6736]
[1721264970485,45.0,158.22,158.21,22.6736]
[1721264973462,45.0,158.22,158.21,16.3531]
[1721264973875,45.0,158.22,158.18,21.3298]
[1721264974089,0.17,158.21,158.18,21.3298]
[1721264974468,6.3215,158.19,158.18,15.0083]
[1721264974664,45.0,158.19,158.16,6.3226]
[1721264974870,6.4907,158.21,158.16,6.3226]
[1721264975081,45.0,158.2,158.17,6.3222]
[1721264975872,45.17,158.21,158.17,6.3222]
[1721264978089,45.17,158.21,158.15,22.13]
[1721264978597,6.3222,158.18,158.14,15.3023]
[1721264978896,45.17,158.17,158.14,15.3023]
[1721264979473,45.17,158.17,158.13,6.3237]
[1721264979674,45.17,158.17,158.12,22.1347]
[1721264981074,6.3227,158.16,158.12,22.1347]
[1721264981291,45.17,158.15,158.12,22.1347]
[1721264981672,45.17,158.15,158.12,15.8105]
[1721264982994,45.17,158.15,158.13,6.3238]
[1721264983176,0.17,158.15,158.13,6.3238]
[1721264983575,45.0,158.16,158.14,6.3233]
[1721264984679,45.0,158.17,158.14,6.3233]
[1721264984983,45.0,158.17,158.13,6.3238]
[1721264985181,0.17,158.16,158.13,6.3238]
[1721264985797,9.3049,158.24,158.15,6.3227]
[1721264986002,6.3215,158.19,158.15,6.3227]
[1721264986505,6.3219,158.18,158.14,22.1313]
[1721264987180,45.17,158.17,158.14,22.1313]
[1721264987883,45.0,158.16,158.15,6.323]
[1721264988094,45.17,158.16,158.15,6.323]
[1721264988277,45.17,158.16,158.14,22.1313]
[1721264988476,45.17,158.16,158.15,6.3231]
[1721264988973,6.3207,158.21,158.16,6.3226]
[1721264989176,6.3203,158.22,158.17,6.3221]
[1721264989604,6.3207,158.21,158.17,6.3221]
[1721264989797,6.3203,158.22,158.18,6.3218]
[1721264990799,6.3203,158.22,158.17,22.1491]
[1721264990980,6.3207,158.21,158.17,15.8269]
[1721264991784,6.3215,158.19,158.14,12.956]
[1721264991986,45.17,158.18,158.14,12.956]
[1721264992205,0.17,158.17,158.14,12.956]
[1721264992382,6.3219,158.18,158.14,6.6326]
[1721264992586,45.17,158.17,158.14,6.6326]
[1721264992801,45.17,158.17,158.14,12.956]
[1721264994398,45.17,158.17,158.15,6.323]
[1721264996401,45.17,158.17,158.16,22.1294]
[1721264996607,45.17,158.17,158.16,15.8067]
[1721264997410,45.17,158.17,158.15,6.323]
[1721264997709,0.17,158.17,158.15,6.323]
[1721264997912,0.17,158.17,158.14,12.956]
[1721264998201,0.17,158.17,158.14,6.6326]
[1721264999082,0.17,158.17,158.14,12.9559]
[1721265000392,45.0,158.18,158.14,12.9559]
[1721265000591,6.3212,158.2,158.15,1.26448169]
[1721265000888,15.7981,158.25,158.16,6.3223]
[1721265001087,20.0,158.24,158.16,6.3223]
[1721265001907,45.17,158.23,158.15,6.323]
[1721265002222,6.3212,158.2,158.15,6.323]
[1721265002383,45.17,158.19,158.15,6.323]
[1721265002695,51.4915,158.19,158.15,6.323]
[1721265002893,45.0,158.18,158.15,6.323]
[1721265003403,51.322,158.18,158.14,28.7642]
[1721265003599,0.17,158.17,158.14,28.7642]
[1721265004918,0.17,158.17,158.13,15.9216]
[1721265004919,6.3235,158.14,158.13,15.9216]
[1721265005085,0.17,158.14,158.1,12.4046]
[1721265005280,45.17,158.14,158.11,6.3246]
[1721265005703,0.17,158.14,158.1,21.8918]
[1721265005909,0.17,158.14,158.12,6.3242]
[1721265006288,45.0,158.15,158.13,6.3239]
[1721265006707,45.0,158.15,158.12,15.8102]
[1721265006915,45.0,158.15,158.13,6.3237]
[1721265007902,45.17,158.16,158.13,6.3237]
[1721265008313,45.0,158.16,158.14,6.3234]
[1721265008621,45.0,158.16,158.15,6.3231]
[1721265008814,6.3206,158.22,158.17,6.3223]
[1721265009115,6.3211,158.2,158.16,15.8063]
[1721265009615,6.3211,158.2,158.16,22.1289]
[1721265010011,6.3211,158.2,158.16,15.8063]
[1721265010321,6.3215,158.19,158.14,6.3233]
[1721265010615,0.17,158.18,158.14,6.3233]
[1721265010813,45.17,158.18,158.14,6.3233]
[1721265011313,45.17,158.18,158.15,6.323]
[1721265013003,0.17,158.18,158.15,6.323]
[1721265015006,0.17,158.18,158.16,6.3226]
[1721265015221,45.0,158.19,158.16,6.3226]
[1721265015413,51.4911,158.2,158.16,6.3226]
[1721265015902,51.4911,158.2,158.15,38.125]
[1721265016303,6.3216,158.19,158.15,31.802]
[1721265016626,45.17,158.18,158.15,31.802]
[1721265017625,45.17,158.18,158.15,38.125]
[1721265018636,45.17,158.18,158.15,15.9948]
[1721265018799,45.17,158.18,158.11,22.4315]
[1721265019000,45.17,158.18,158.11,16.1072]
[1721265019325,6.3238,158.14,158.09,22.1385]
[1721265019618,45.17,158.18,158.09,22.1385]
[1721265019619,51.494,158.13,158.09,15.8134]
[1721265019824,51.3243,158.12,158.08,6.3258]
[1721265020006,0.17,158.11,158.08,6.3258]
[1721265020202,45.17,158.11,158.08,6.3258]
[1721265020515,45.17,158.11,158.09,6.3254]
[1721265020706,0.17,158.11,158.1,6.3251]
[1721265021139,0.17,158.11,158.09,15.8135]
[1721265024134,0.17,158.11,158.09,22.1389]
[1721265028619,0.17,158.11,158.09,15.8135]
[1721265029529,0.17,158.11,158.07,16.1072]
[1721265030624,0.17,158.11,158.07,22.4331]
[1721265032423,0.17,158.11,158.08,6.3258]
[1721265032739,0.17,158.11,158.09,6.3253]
[1721265034350,0.17,158.11,158.08,22.1399]
[1721265034914,0.17,158.11,158.09,6.3253]
[1721265035450,0.17,158.11,158.08,22.1399]
[1721265036634,0.17,158.11,158.08,23.40493429]
[1721265037138,0.17,158.11,158.09,6.3253]
[1721265037740,45.0,158.12,158.1,6.3249]
[1721265038120,45.0,158.13,158.1,6.3249]
[1721265038316,3.1616,158.19,158.1,15.8123]
[1721265038543,6.3228,158.16,158.12,6.3242]
[1721265039122,6.3228,158.16,158.11,6.3245]
[1721265039725,45.17,158.15,158.11,6.3245]
[1721265041849,45.17,158.15,158.1,15.8123]
[1721265041850,45.17,158.15,158.08,1.26485005]
[1721265042139,6.3252,158.1,158.07,16.1072]
[1721265042341,45.0,158.09,158.07,16.1072]
[1721265042524,45.0,158.09,158.05,6.3268]
[1721265042929,0.17,158.08,158.05,6.3268]
[1721265044543,0.17,158.08,158.06,6.3266]
[1721265044743,45.0,158.09,158.06,6.3266]
[1721265045646,0.17,158.08,158.04,15.8183]
[1721265046440,0.17,158.08,158.04,22.1454]
[1721265047540,0.17,158.08,158.05,6.327]
[1721265048125,0.17,158.08,158.06,6.3266]
[1721265048943,0.17,158.08,158.05,6.327]
[1721265049148,0.17,158.08,158.04,22.1457]
[1721265049327,6.496,158.08,158.04,15.8183]
[1721265049532,45.0,158.07,158.04,15.8183]
[1721265049729,0.17,158.06,158.04,15.8183]
[1721265053136,0.17,158.06,158.04,22.1457]
[1721265055042,0.17,158.06,158.05,6.3271]
[1721265056061,0.17,158.06,158.04,22.1457]
[1721265057245,0.17,158.06,158.04,15.8183]
[1721265057443,0.17,158.06,158.01,15.8215]
[1721265057764,0.17,158.06,158.03,6.3278]
[1721265060665,45.0,158.07,158.03,6.3278]
[1721265060857,45.0,158.07,158.04,7.59279406]
[1721265061053,45.17,158.08,158.04,6.3274]
[1721265061259,51.4959,158.08,158.04,6.3274]
[1721265061655,0.17,158.07,158.03,6.3278]
[1721265063671,6.4963,158.07,158.03,6.3278]
[1721265063874,45.0,158.06,158.03,6.3278]
[1721265065142,51.3267,158.06,158.01,22.1499]
[1721265065348,45.0,158.06,158.02,7.59363748]
[1721265065548,45.0,158.06,158.03,6.3278]
[1721265065763,45.0,158.06,158.02,6.3282]
[1721265065963,51.3268,158.06,158.02,6.3282]
[1721265066560,0.17,158.05,158.02,6.3282]
[1721265066768,6.4971,158.05,158.01,15.8215]
[1721265067084,45.0,158.04,157.99,21.5675]
[1721265067376,0.17,158.05,157.98,15.8244]
[1721265067555,6.3286,158.02,157.98,15.8244]
[1721265067871,45.0,158.01,157.98,15.8244]
[1721265068065,45.0,158.01,157.98,22.1542]
[1721265068255,45.0,158.02,157.98,15.8244]
[1721265068457,6.3295,157.99,157.95,30.9528]
[1721265068657,0.17,158.01,157.95,30.9528]
[1721265068864,6.4987,158.01,157.96,6.3304]
[1721265069059,45.0,158.0,157.97,6.3302]
[1721265069586,45.17,158.01,157.97,6.3302]
[1721265071179,6.3293,158.0,157.95,30.9528]
[1721265071483,45.17,157.99,157.95,30.9528]
[1721265072070,45.17,157.99,157.95,37.2836]
[1721265072878,45.17,157.99,157.96,6.3307]
[1721265073484,45.0,157.98,157.96,6.3307]
[1721265073659,0.17,157.99,157.96,6.3307]
[1721265075775,45.0,158.0,157.97,6.3302]
[1721265075980,45.0,158.01,157.98,6.3296]
[1721265076150,0.17,158.0,157.98,6.3296]
[1721265076355,0.17,158.01,157.97,22.1552]
[1721265076581,6.4988,158.01,157.97,22.1552]
[1721265076751,45.0,158.0,157.97,22.1552]
[1721265077684,45.17,158.01,157.97,22.1552]
[1721265078374,51.4987,158.01,157.97,22.1552]
[1721265078971,6.3295,157.99,157.95,15.1256]
[1721265079168,45.17,157.98,157.95,15.1256]
[1721265079765,45.17,157.98,157.95,21.4565]
[1721265080174,0.17,157.98,157.95,21.4565]
[1721265081561,0.17,157.98,157.95,15.1256]
[1721265082472,0.17,157.98,157.95,21.4566]
[1721265084665,0.17,157.98,157.96,6.3306]
[1721265086476,0.17,157.98,157.95,21.4566]
[1721265088179,0.17,157.98,157.96,6.3305]
[1721265090701,0.17,157.98,157.95,37.2839]
[1721265094809,45.0,157.99,157.96,1.26611975]
[1721265095107,6.3279,158.03,157.97,15.8248]
[1721265095278,6.3279,158.03,157.98,6.3298]
[1721265095598,6.3279,158.03,157.99,6.3294]
[1721265096801,45.0,158.02,157.97,15.8248]
[1721265097100,6.4989,158.01,157.97,15.8248]
[1721265097403,45.0,158.0,157.97,15.8248]
[1721265097983,51.3291,158.0,157.95,21.4565]
[1721265098183,51.3291,158.0,157.95,15.1256]
[1721265098184,6.4996,157.99,157.95,15.1256]
[1721265098410,45.0,157.98,157.95,15.1256]
[1721265099593,45.17,157.99,157.97,6.3303]
[1721265099890,45.17,157.99,157.96,22.1565]
[1721265100097,0.17,157.99,157.96,22.1565]
[1721265100878,0.17,157.99,157.96,15.8259]
[1721265101801,0.17,157.99,157.96,23.42240881]
[1721265102103,45.0,158.0,157.96,23.42260881]
[1721265102275,45.0,158.0,157.96,22.1565]
[1721265102480,51.3292,158.0,157.96,22.1565]
[1721265102792,45.0,158.0,157.97,6.3303]
[1721265103002,51.3291,158.0,157.96,22.1564]
[1721265103176,51.3291,158.0,157.96,15.8259]
[1721265103380,51.3291,158.0,157.96,22.1565]
[1721265103588,45.0,158.0,157.96,22.1565]
[1721265104818,45.0,158.0,157.97,6.3302]
[1721265105102,45.0,158.0,157.96,22.1564]
[1721265107009,51.3292,158.0,157.96,22.1564]
[1721265107783,45.0,158.0,157.96,22.1564]
[1721265108787,51.3291,158.0,157.96,22.1564]
[1721265111096,51.3291,158.0,157.96,15.8259]
[1721265111309,6.3295,157.99,157.96,15.8259]
[1721265111897,6.3295,157.99,157.95,21.4565]
[1721265112100,6.3299,157.98,157.95,15.1256]
[1721265112425,51.3303,157.97,157.95,15.1256]
[1721265112713,45.0,158.0,157.91,21.5456]
[1721265112714,60.8233,158.0,157.91,21.5456]
[1721265112897,6.3314,157.95,157.91,15.2129]
[1721265113302,45.0,157.94,157.91,15.2129]
[1721265113610,51.3315,157.94,157.91,15.2129]
[1721265113990,45.0,157.94,157.91,15.2129]
[1721265114184,6.502,157.93,157.89,22.1667]
[1721265114391,45.0,157.92,157.89,22.1667]
[1721265115414,45.17,157.93,157.89,22.1667]
[1721265115719,45.17,157.93,157.9,6.333]
[1721265116187,0.17,157.93,157.9,6.333]
[1721265117011,0.17,157.93,157.91,6.3327]
[1721265118001,0.17,157.93,157.9,6.333]
[1721265118691,45.0,157.94,157.91,15.831]
[1721265119021,45.0,157.94,157.92,6.332]
[1721265119623,45.0,157.94,157.93,6.3319]
[1721265119805,0.17,157.95,157.93,6.3319]
[1721265120321,6.3299,157.98,157.93,6.3319]
[1721265120692,6.3304,157.97,157.93,6.3319]
[1721265121120,6.5435342,158.03,157.93,32.0335]
[1721265121357,31.08044399,158.04,157.93,32.0335]
[1721265121632,6.3294,158.0,157.95,6.331]
[1721265122215,6.3294,158.0,157.93,32.0335]
[1721265122794,6.3287,158.01,157.96,6.3306]
[1721265123113,6.3287,158.01,157.97,6.3301]
[1721265124006,6.3293,158.0,157.95,15.8272]
[1721265124213,6.3292,158.0,157.96,6.3306]
[1721265124394,45.17,157.99,157.95,22.1582]
[1721265124800,45.17,157.99,157.96,6.3306]
[1721265125418,0.17,157.99,157.96,6.3306]
[1721265125838,6.3299,157.98,157.93,37.926]
[1721265126142,6.4996,157.99,157.95,6.3309]
[1721265126451,0.17,157.99,157.95,6.3309]
[1721265128140,0.17,157.99,157.96,6.3306]
[1721265128648,6.4996,157.99,157.95,6.331]
[1721265128816,45.0,157.98,157.95,6.331]
[1721265129642,45.17,157.99,157.96,6.3306]
[1721265129840,45.17,157.99,157.95,6.331]
[1721265130431,45.17,157.99,157.96,6.3305]
[1721265130726,0.17,157.99,157.96,6.3305]
[1721265132036,0.17,157.99,157.95,22.1583]
[1721265132211,6.4995,157.99,157.95,22.1583]
[1721265132414,45.0,157.98,157.95,22.1583]
[1721265132613,0.17,157.99,157.95,22.1583]
[1721265133026,6.4996,157.99,157.95,15.8273]
[1721265133234,45.0,157.98,157.93,16.2044]
[1721265133535,6.5004,157.97,157.93,22.5362]
[1721265133737,45.0,157.96,157.93,22.5362]
[1721265134517,51.3307,157.96,157.93,16.2044]
[1721265134721,0.17,157.95,157.92,22.1624]
[1721265139543,6.5011,157.95,157.89,16.1591]
[1721265139846,45.0,157.94,157.91,6.3326]
[1721265140039,0.17,157.93,157.91,6.3326]
[1721265140217,45.0,157.94,157.92,6.3323]
[1721265140417,45.0,157.95,157.92,6.3323]
[1721265140616,0.17,157.94,157.92,6.3323]
[1721265141041,0.17,157.94,157.91,6.3326]
[1721265142423,0.17,157.94,157.92,6.3321]
[1721265142623,0.17,157.94,157.91,6.3326]
[1721265144520,0.17,157.94,157.9,22.1651]
[1721265144722,0.17,157.94,157.9,15.8321]
[1721265144723,6.5015,157.94,157.9,15.8321]
[1721265145030,45.0,157.93,157.9,15.8321]
[1721265145233,45.0,157.93,157.9,22.1651]
[1721265145834,51.3319,157.93,157.9,15.8321]
[1721265146041,0.17,157.92,157.9,15.8321]
[1721265146430,0.17,157.92,157.88,6.3335]
[1721265146819,0.17,157.92,157.89,6.3334]
[1721265148457,0.17,157.92,157.9,6.333]
[1721265148751,0.17,157.92,157.89,22.1664]
[1721265151051,6.95817623,157.99,157.86,15.39]
[1721265151254,31.6318,158.07,157.91,22.1636]
[1721265151255,6.3307,157.96,157.91,22.1636]
[1721265151556,6.3307,157.96,157.92,6.3322]
[1721265152361,45.0,157.95,157.92,6.3322]
[1721265153350,45.17,157.96,157.92,6.3322]
[1721265153523,51.5008,157.96,157.92,6.3322]
[1721265158330,45.17,157.96,157.91,16.2561]
[1721265158665,45.17,157.96,157.89,6.3332]
[1721265158666,6.3316,157.94,157.89,6.3332]
[1721265158959,45.17,157.93,157.89,6.3332]
[1721265161753,45.17,157.93,157.9,6.333]
[1721265162930,0.17,157.93,157.9,6.333]
[1721265164830,0.17,157.93,157.88,15.8344]
[1721265165129,6.3324,157.92,157.88,15.8344]
[1721265165344,51.5027,157.91,157.87,16.1983]
[1721265165662,0.17,157.9,157.87,16.1983]
[1721265166578,6.5031,157.9,157.86,6.3346]
[1721265166853,45.0,157.89,157.86,6.3346]
[1721265167765,45.17,157.9,157.87,6.3342]
[1721265169639,45.17,157.9,157.86,6.3346]
[1721265171541,51.5031,157.9,157.86,6.3346]
[1721265172060,51.5031,157.9,157.85,39.62759867]
[1721265172256,51.5031,157.9,157.85,24.23759867]
[1721265172755,51.5031,157.9,157.86,6.3346]
[1721265173659,45.17,157.9,157.86,6.3346]
[1721265175441,6.3336,157.89,157.85,16.635689]
[1721265175665,45.0,157.88,157.85,22.970489]
[1721265175962,22.3736,157.95,157.87,15.8353]
[1721265177046,6.3325,157.92,157.87,15.8353]
[1721265177242,6.3325,157.92,157.88,6.3339]
[1721265177443,45.17,157.91,157.88,6.3339]
[1721265178951,13.83719724,157.98,157.89,1.2666369]
[1721265179153,6.3307,157.96,157.91,6.3326]
[1721265179354,6.3311,157.95,157.91,6.3326]
[1721265179675,6.3312,157.95,157.91,6.3326]
[1721265179968,6.3312,157.95,157.9,6.3329]
[1721265180264,15.8255,157.98,157.9,7.59938152]
[1721265180438,6.3323,157.92,157.89,15.8332]
[1721265180637,45.17,157.97,157.88,15.2596]
[1721265180638,0.17,157.93,157.88,15.2596]
[1721265180845,0.17,157.93,157.88,21.5934]
[1721265181044,6.502,157.93,157.88,21.5934]
[1721265181258,45.0,157.92,157.88,21.5934]
[1721265181649,45.0,157.92,157.89,6.3333]
[1721265181854,0.17,157.93,157.91,6.3326]
[1721265182042,45.17,157.94,157.91,6.3326]
[1721265182245,0.17,157.94,157.91,6.3326]
[1721265182570,6.4984,157.99,157.91,15.8311]
[1721265182746,6.3309,157.96,157.91,22.1635]
[1721265182942,6.4984,157.99,157.9,1.26640927]
[1721265183147,6.3314,157.95,157.9,7.59910927]
[1721265183374,6.3314,157.95,157.9,6.3327]
[1721265183853,45.17,157.94,157.9,6.3327]
[1721265184070,45.17,157.94,157.91,6.3326]
[1721265185469,0.17,157.94,157.91,6.3326]
[1721265185765,0.17,157.94,157.92,6.3323]
[1721265188570,0.17,157.94,157.9,1.26639645]
[1721265188892,0.17,157.94,157.91,6.3326]
[1721265190178,53.6568,158.03,157.93,6.3319]
[1721265190372,3.1616,158.01,157.92,6.3322]
[1721265190761,6.3307,157.96,157.91,22.1637]
[1721265190959,6.3316,157.94,157.88,31.0938]
[1721265191170,6.3321,157.93,157.89,6.3334]
[1721265191370,51.3323,157.92,157.88,31.0938]
[1721265191682,6.5027,157.91,157.88,15.8342]
[1721265191891,45.0,157.9,157.88,15.8342]
[1721265192370,45.17,157.91,157.88,15.8342]
[1721265192968,45.17,157.91,157.88,22.168]
[1721265193165,0.17,157.91,157.88,22.168]
[1721265195360,0.17,157.91,157.89,6.3334]
[1721265196284,0.17,157.91,157.88,22.168]
[1721265196481,0.17,157.91,157.87,6.3342]
[1721265197971,6.5028,157.91,157.87,6.3342]
[1721265198179,45.0,157.9,157.87,6.3342]
[1721265198370,0.17,157.89,157.87,6.3342]
[1721265199483,0.17,157.89,157.86,6.3346]
[1721265199669,3.1616,158.01,157.87,22.0019]
[1721265199984,6.3303,157.97,157.92,15.8305]
[1721265200156,6.3307,157.96,157.92,15.8305]
[1721265200365,6.3315,157.94,157.9,6.3328]
[1721265200659,6.3315,157.94,157.89,22.1667]
[1721265201275,6.332,157.93,157.89,15.8333]
[1721265201683,45.17,157.92,157.89,15.8333]
[1721265202284,45.17,157.92,157.89,22.1667]
[1721265204191,45.17,157.92,157.89,15.8333]
[1721265206387,45.17,157.92,157.89,22.1667]
[1721265208682,51.5023,157.92,157.87,21.6828]
[1721265210400,6.3327,157.91,157.87,21.6828]
[1721265210607,45.17,157.9,157.87,21.6828]
[1721265211397,6.3347,157.86,157.85,0.798489]
[1721265211588,6.5047,157.86,157.85,0.798489]
[1721265211790,51.5047,157.86,157.85,0.798489]
[1721265212514,71.5047,157.86,157.85,0.798489]
[1721265212694,71.5047,157.86,157.85,0.66605416]
[1721265212895,71.5047,157.86,157.85,5.416e-05]
[1721265218200,51.5047,157.86,157.85,5.416e-05]
[1721265218523,6.3347,157.86,157.85,5.416e-05]
[1721265219217,25.4243,157.91,157.85,5.416e-05]
[1721265219424,9.5923,157.91,157.85,5.416e-05]
[1721265219786,6.3346,157.87,157.85,5.416e-05]
[1721265220220,6.3347,157.86,157.85,5.416e-05]
[1721265220590,6.3343,157.87,157.85,5.416e-05]
[1721265221009,6.3347,157.86,157.85,5.416e-05]
[1721265221293,51.5047,157.86,157.85,5.416e-05]
[1721265221603,45.17,157.86,157.85,5.416e-05]
[1721265227222,0.17,157.86,157.85,5.416e-05]
[1721265228023,6.5047,157.86,157.85,5.416e-05]
[1721265228193,0.17,157.86,157.85,5.416e-05]
[1721265235808,3.1616,157.95,157.85,5.416e-05]
[1721265236013,6.3326,157.92,157.88,15.8347]
[1721265236333,275.85108653,157.98,157.88,17.10136302]
[1721265236506,6.3322,157.93,157.88,37.5585]
[1721265236706,6.3322,157.93,157.88,22.1685]
[1721265237303,51.3323,157.92,157.88,22.1685]
[1721265237507,0.17,157.91,157.88,22.1685]
[1721265240319,6.3316,157.94,157.89,7.59984241]
[1721265240536,45.17,157.93,157.89,6.3333]
[1721265240720,45.17,157.93,157.9,6.3329]
[1721265240920,0.17,157.93,157.9,6.3329]
[1721265241135,45.17,157.94,157.9,6.3329]
[1721265241338,51.5015,157.94,157.9,6.3329]
[1721265241514,51.5015,157.94,157.89,6.3334]
[1721265241928,45.17,157.94,157.9,6.3329]
[1721265242236,45.17,157.94,157.9,7.59935294]
[1721265242440,51.5015,157.94,157.9,6.3329]
[1721265243912,51.5015,157.94,157.89,6.3335]
[1721265244520,51.5015,157.94,157.9,6.333]
[1721265251247,45.17,157.94,157.88,15.8347]
[1721265252222,45.17,157.94,157.88,22.1683]